Cogmind - Beta 13 @@@ ROGUE MODE // 2024.04.12 @ 19:04:20 Player: meetlok Result: Destroyed by Y-45 Defender with Beam Rifle Performance ------------- Evolutions (1) 500 Regions Visited (2) 400 Robots Destroyed (27) 135 Value Destroyed (715) 715 Prototype IDs (2) 40 Alien Tech Used (0) 0 Bonus (0) 0 TOTAL SCORE: 1790 Bonus ------- None Cogmind --------- Core Integrity 0/400 Matter 300/300 Energy 95/100 System Corruption 0% Temperature Cool (9) Movement Core (50) Location -9/Materials Parts ------- > --- POWER (1) -------- (None) > --- PROPULSION (2) --- (None) > --- UTILITY (4) ------ Terrain Scan Processor Transport Network Coupler Utility Shielding > --- WEAPON (2) ------- Flail > --- INVENTORY (5) ---- Weight Redist. System Utility Shielding EM Pulse Gun Particle Gun Light Assault Rifle Peak State ------------ > --- POWER ------------ Light Ion Engine > --- PROPULSION ------- Aluminum Leg Aluminum Leg > --- UTILITY ---------- Improved Heat Sink Small Storage Unit Transport Network Coupler Utility Shielding > --- WEAPON ----------- Flail Flail > --- INVENTORY -------- Flight Unit Flight Unit Weight Redist. System Utility Shielding EM Pulse Gun Particle Gun Light Assault Rifle Mining Laser [Rating: 14] Favorites ----------- Power Light Ion Engine Engine Light Ion Engine Propulsion Aluminum Leg Leg Aluminum Leg Utility Small Storage Unit Device Improved Heat Sink Storage Small Storage Unit Processor Transport Network Coupler Protection Utility Shielding Weapon Light Assault Rifle Energy Gun Small Laser Ballistic Gun Light Assault Rifle Special Weapon Mining Laser Impact Weapon Flail Build | -11 -10 -9 ------- Run | Yrd Mat Mat Slots Evolved 2 | . . 2 Power . | . . . Propulsion . | . . . Utility 2 | . . 2 Weapon . | . . . Parts Attached 28 | 6 17 5 Power 3 | 1 2 . Engine 3 | 1 2 . Core . | . . . Reactor . | . . . Propulsion 8 | 2 6 . Treads . | . . . Leg 8 | 2 6 . Wheel . | . . . Hover . | . . . Flight . | . . . Utility 6 | 1 2 3 Device 2 | . 2 . Storage 1 | 1 . . Processor 2 | . . 2 Hackware . | . . . Protection 1 | . . 1 Artifact . | . . . Weapon 11 | 2 7 2 Energy Gun 7 | 1 6 . Energy Cannon . | . . . Ballistic Gun 1 | 1 . . Ballistic Cannon . | . . . Launcher . | . . . Special Weapon 1 | . 1 . Impact Weapon 2 | . . 2 Slashing Weapon . | . . . Piercing Weapon . | . . . Special Melee Weapon . | . . . Unidentified Prototypes . | . . . Parts Lost 7 | . 2 5 Power 2 | . 1 1 Propulsion 2 | . . 2 Utility 1 | . . 1 Weapon 2 | . 1 1 Highest Loss Streak 3 | . 1 3 To Critical Strikes . | . . . Average Slot Usage (%) 94 | . 98 83 Engine 11 | . 13 6 Leg 23 | . 28 11 Device 9 | . 12 3 Storage 13 | . 14 11 Processor 5 | . . 18 Protection 3 | . . 10 Energy Gun 10 | . 13 1 Ballistic Gun 10 | . 14 1 Impact Weapon 5 | . . 19 Naked Turns . | . . . Heaviest Build 14 | 11 14 14 Greatest Support 20 | 20 20 20 Greatest Overweight (x) 3 | 3 . 3 Average Overweight (x) . | . . . Largest Inventory Capacity 8 | 8 8 8 Average Capacity 7 | 7 8 7 Most Carried 8 | 2 8 8 Average Carried 6 | 1 6 7 Final Capacity 8 | 8 8 5 Final Carried 8 | 2 8 5 Class Distribution -------------------- 53% | Scavenger-Mutant 46% | Mutant Dominant Class ---------------- Scavenger-Mutant | -10/Materials Mutant | -9/Materials Resources | -11 -10 -9 ----------- Run | Yrd Mat Mat Matter Collected 533 | 206 277 50 Remotely . | . . . Salvage Created 1076 | . 672 404 Parts 42 | . 35 7 Haulers Intercepted 2 | . 2 . Recyclers Shooed . | . . . Parts Field Recycled . | . . . Retrieved Matter . | . . . Parts Self-Destructed . | . . . Prevented . | . . . Kills | -11 -10 -9 ------- Run | Yrd Mat Mat Combat Hostiles Destroyed 22 | . 15 7 Melee 5 | . . 5 Guns 15 | . 15 . Classes Destroyed 6 | . 3 3 Worker 1 | . . 1 Hauler 2 | . 2 . Recycler 2 | . . 2 Swarmer 5 | . 2 3 Grunt 13 | . 13 . Sentry 4 | . . 4 Best Kill Streak 3 | . 3 2 Combat Bots Only 3 | . 3 2 Max Kills in Single Turn 1 | . 1 1 Gunslinging . | . . . Exploded . | . . . Melee 1 | . . 1 Uniques/NPCs Destroyed . | . . . Combat | -11 -10 -9 -------- Run | Yrd Mat Mat Hostile Shots Fired 190 | . 90 100 Missed 62 | . 34 28 Damage Taken 1558 | . 655 903 Core 470 | . 58 412 Absorbed by Shields . | . . . Redirected to Shielding 45 | . . 45 Core Remaining (%) 88 | 100 76 . Volleys Fired 69 | 1 68 . Largest 2 | 2 2 . Hottest 100 | 70 100 . Shots Fired 137 | 2 135 . Gun 136 | 2 134 . Cannon . | . . . Launcher . | . . . Special 1 | . 1 . Kinetic 68 | 1 67 . Thermal 61 | 1 60 . Explosive . | . . . Electromagnetic 8 | . 8 . Robot Hit Streak 14 | 2 14 . Robot Miss Streak 4 | . 4 . Penetration Max . | . . . Secondary Targets 2 | . 2 . Max Gunslinging Chain 1 | . 1 . Shots Hit Robots 121 | 2 86 33 Core Hits 41 | . 36 5 Critical Kills 1 | . . 1 Critical Parts Destroyed 5 | . . 5 Critical Strikes 8 | 1 1 6 Burn 2 | 1 1 . Smash 6 | . . 6 Melee Attacks 49 | . . 49 Impact 49 | . . 49 Slashing . | . . . Piercing . | . . . Sneak Attacks 3 | . . 3 Combat Hostiles . | . . . Follow-up Attacks 3 | . . 3 Damage Inflicted 2079 | 21 919 1139 Guns 937 | 21 916 . Cannons . | . . . Explosions . | . . . Melee 1139 | . . 1139 Ramming 3 | . 3 . Kinetic 373 | 8 365 . Thermal 500 | 13 487 . Explosive . | . . . Electromagnetic 64 | . 64 . Impact 1139 | . . 1139 Slashing . | . . . Piercing . | . . . Highest Corruption . | . . . Average Corruption . | . . . Corruption Purged . | . . . Corruption Blocked . | . . . Overload Shots . | . . . Overflow Damage 371 | . . 371 Projectiles . | . . . Explosions . | . . . Melee 371 | . . 371 Knockbacks 1 | . . 1 Impact 1 | . . 1 Kinetic . | . . . Secondary . | . . . Self-Inflicted Damage . | . . . Shots . | . . . Rammed . | . . . Targets Rammed 1 | . 1 . Kicked 1 | . 1 . Crushed . | . . . Highest Temperature 240 | 30 240 . Average Temperature 59 | 18 60 . Received Heat Transfer 627 | . 360 267 Effects 1 | . 1 . Energy Bleed 1 | . 1 . Siege Activations . | . . . Robots Corrupted . | . . . Combat Hostiles . | . . . Parts Fried 5 | . . 5 Impact Corruptions 13 | . . 13 Robots Melted . | . . . Combat Hostiles . | . . . Parts Melted 1 | . . 1 Heat Transferred 1437 | 111 1326 . Parts Sabotaged . | . . . Parts Stolen . | . . . Parts Stripped . | . . . Power Chain Reactions . | . . . Alert | -11 -10 -9 ------- Run | Yrd Mat Mat Peak Influence 277 | . 277 252 Initial 57 | . . 57 Average 141 | . 150 144 Maximum Alert Level 1 | . 1 1 Low Security (%) 79 | 100 79 77 Level 1 20 | . 20 22 Level 2 . | . . . Level 3 . | . . . Level 4 . | . . . Level 5 . | . . . High Security . | . . . Max Security . | . . . Squads Dispatched 4 | . 4 . Investigation 3 | . 3 . Extermination . | . . . Reinforcement 1 | . 1 . Assault . | . . . Garrison . | . . . Intercept . | . . . Searches Triggered . | . . . Construction Impeded . | . . . Haulers Reinforced . | . . . Active Scanning Responses . | . . . Cargo Convoy Interrupts . | . . . Stealth | -11 -10 -9 --------- Run | Yrd Mat Mat Distress Signals 5 | . 3 2 Communications Jammed . | . . . Distress Signals . | . . . Times Spotted 41 | . 27 14 Peak Tracking Total 8 | . 4 8 Tactical Retreats 2 | . 2 . Traps | -11 -10 -9 ------- Run | Yrd Mat Mat Traps Triggered 4 | . 3 1 Indirectly . | . . . Trap Hack Attempts . | . . . Triggered . | . . . Disarmed . | . . . Reprogrammed . | . . . Reused . | . . . Traps Extracted . | . . . Installed . | . . . Triggered . | . . . Machines | -11 -10 -9 ---------- Run | Yrd Mat Mat Machines Disabled . | . . . Max in Single Turn . | . . . Machines Repaired . | . . . Machines Dismantled . | . . . Machines Sabotaged . | . . . Overloaded Fab Kills . | . . . Hacking | -11 -10 -9 --------- Run | Yrd Mat Mat Machines Accessed 9 | . 8 1 Terminals 7 | . 6 1 Fabricators . | . . . Repair Stations . | . . . Recycling Units 2 | . 2 . Scanalyzers . | . . . Garrison Access . | . . . Total Hacks 22 | . 19 3 Successful 11 | . 10 1 Failed 11 | . 9 2 Catastrophic 2 | . 2 . Database Lockouts . | . . . Manual 4 | . 4 . Terminals 20 | . 17 3 Fabricators . | . . . Repair Stations . | . . . Recycling Units 2 | . 2 . Scanalyzers . | . . . Garrison Access . | . . . Terminal Hacks 9 | . 8 1 Prototype ID Bank 1 | . 1 . Locate Traps 1 | . 1 . Transport Status 2 | . 2 . Recall Investigation 1 | . 1 . Hauler Manifests 2 | . 1 1 Zone Layout 2 | . 2 . Fabricator Hacks . | . . . Repair Station Hacks . | . . . Recycling Unit Hacks 2 | . 2 . Report Inventory 2 | . 2 . Scanalyzer . | . . . Garrison Access Hacks . | . . . Unauthorized Hacks . | . . . Terminals . | . . . Fabricators . | . . . Repair Stations . | . . . Recycling Units . | . . . Scanalyzers . | . . . Garrison Access . | . . . Data Cores Recovered . | . . . Used . | . . . Hacking Detections 7 | . 6 1 Full Trace Events 2 | . 2 . Feedback Events . | . . . Feedback Blocked . | . . . Robot Schematics Acquired . | . . . Robots Built . | . . . Authchips . | . . . Time . | . . . Total Robot Build Rating . | . . . Part Schematics Acquired . | . . . Parts Built . | . . . Authchips . | . . . Time . | . . . Total Part Build Rating . | . . . Parts Repaired . | . . . Time . | . . . Parts Recycled . | . . . Recycled Matter . | . . . Retrieved Matter . | . . . Retrieved Components . | . . . Parts Scanalyzed . | . . . Part Schematics Acquired . | . . . Parts Damaged . | . . . Bothacking | -11 -10 -9 ------------ Run | Yrd Mat Mat Used RIF Installer . | . . . Robots Hacked . | . . . Non-combat . | . . . Combat . | . . . Robot Hacks Applied . | . . . Relay Couplers Released . | . . . Fabnet Peak Effective % . | . . . Robots Rewired . | . . . Allies Hacked . | . . . Hacks Repelled . | . . . Allies | -11 -10 -9 -------- Run | Yrd Mat Mat Total Allies . | . . . Largest Group . | . . . Highest-Rated Group . | . . . Highest-Rated Ally . | . . . Total Orders . | . . . Ally Attacks . | . . . Total Damage . | . . . Kills . | . . . Allies Corrupted . | . . . Allies Melted . | . . . Intel | -11 -10 -9 ------- Run | Yrd Mat Mat Robot Analysis Total . | . . . Derelict Logs Recovered . | . . . Drone Launches . | . . . Drone Recoveries . | . . . Exploration | -11 -10 -9 ------------- Run | Yrd Mat Mat Turns Passed 1278 | 66 872 340 Spaces Moved 693 | 39 514 140 Core 53 | 16 . 37 Treads . | . . . Legs 640 | 23 514 103 Wheels . | . . . Hover . | . . . Flight . | . . . Fastest Speed 50 | 50 120 120 Average Speed 125 | 134 120 142 Slowest Speed 200 | 200 120 200 Overloaded Moves . | . . . Propulsion Burnouts . | . . . Robots Hopped . | . . . Cave-ins Triggered . | . . . Exploration Rate (%) 35 | 4 83 18 Regions Visited 2 Branch Regions . Pre-discovered Areas . | . . . Known Exits Taken . | . . . Unknown Exits Taken 2 | 1 1 . Scrap Searched . | . . . Spaces Dug 1 | . 1 . Terrain Destroyed 1 | . 1 . Melee . | . . . Projectile 1 | . 1 . AOE . | . . . Terrain Rammed . | . . . Walls Destroyed . | . . . Machines Disabled . | . . . Actions | -11 -10 -9 --------- Run | Yrd Mat Mat Total 914 | 47 653 214 Wait 40 | . 19 21 Move 691 | 38 513 140 Hop . | . . . Pick Up 19 | 2 17 . Fast Attach 10 | 6 1 3 Attach 5 | . 3 2 Detach 2 | . . 2 Swap 13 | . 13 . Drop 19 | . 18 1 Fire 69 | 1 68 . Melee 45 | . . 45 Ram . | . . . Kick 1 | . 1 . Crush . | . . . Escape Stasis . | . . . Rewire . | . . . Trap . | . . . Miscellaneous . | . . . Route ------- -11/Scrapyard -10/Materials (discovered 4 exits: *Mat x2 / [*Min x2]) -9/Materials (discovered 1 exit: [*Min]) History --------- Turn | Location | Event 52 | -11/Scrapyard | Discovered new exit (range 12) 67 | -11/Scrapyard | Entered Materials 91 | -10/Materials | Discovered new exit (range 16) 306 | -10/Materials | Build established: Mutant 370 | -10/Materials | Discovered new exit (range 4) 532 | -10/Materials | Discovered new exit (range 8) 744 | -10/Materials | Build established: Scavenger-Mutant 800 | -10/Materials | Discovered new exit (range 16) 939 | -10/Materials | Entered another Materials area 939 | -9/Materials | Evolved 2 slots: Utility x2 940 | -9/Materials | Discovered new exit (range 8) 1157 | -9/Materials | Lost 3 parts (1p2n) 1254 | -9/Materials | Core integrity fell below 50% 1274 | -9/Materials | Core integrity fell below 20% 1279 | -9/Materials | Destroyed by Y-45 Defender with Beam Rifle Last Messages --------------- Y-45 Defender misfires. Y-45 Defender heat spikes uncontrollably. Destroyed Heat Sink. Y-45 Defender system corrupted by crushing effect. Flail follow-up attack on Y-45 Defender. Y-45 Defender system terminally corrupted. Lgt. Treads melted. Y-45 Defender suffers critical hit (Smash). Destroyed Lgt. Treads. Y-45 Defender system corrupted by crushing effect. Y-45 Defender destroyed. Flail destroyed. Sml. Storage Unit destroyed. Y-45 Defender suffers critical hit (Smash). Destroyed Imp. Ion Engine. Y-45 Defender system corrupted by crushing effect. Y-45 Defender misfires. Map ----- +----------------------------------------------------+ | #?????????????????# ????????????????? | | #?????????????????# ????????????????? | | #?????????????????# """ #??????????????? | | ## #?????##??????????# [ """""#??????????????? | | ?## ####### ###????????# """""#??????????????? | | ??#! # = !!! #????????# """#??????????????? | | ??#% # !!! #????????#! #??????????????? | | ??# +% ! #????????# #??????????????? | | ??# #=%! #????????# #??????????????? | | ??# ###########????????#####+####??????????????? | | ?## ###################### % #???????????????? | | ?# = ###########?????? | | ?# ^ % + #?????? | | ?# ^ a% % % # #?????? | | ?# ################# """ # """ """ #?????? | | ?# #???????????????# """ # """ """ #?????? | | ?#######???????????????# """ # """ """ #?????? | | ??????????????????????## # ??????? | | ??????????????????????#T # ! ??????? | | ??????????????????????## """ # #?????? | | ???????????????????????# """ #####+#####?????? | | ???????????????????????# """ ### ?????????? | | ????????????????########|* !?????????? | | ????????????# %= ?????????? | | ????????? ######Y#### ?????????? | | ???????????????????# [%@|!######## ??????????? | | ???????????????????# "T" b= #????????????????????? | | ???????????????????# """ !#????????????????????? | | ???????????????????# gg #????????????????????? | | ???????????????????#######/##????????????????????? | | ?????????????????????????? ?????????????????????? | | ?????????????????????????? ??????????a??????????? | | ?????????????????????????? ????????????????????? | | ??????????????????????????!==????????????????????? | | ??????????????????????????!= ????????????????????? | | ??????????????????????????== #???????????????????? | | ?????????????????????????? #???????????????????? | | ???????????????????????????###???????????????????? | | ?????????????????????????????????????????????????? | | ?????????????????????????????????????????????????? | | ?????????????????????????????????????????????????? | | ?????????????????????????????????????????????????? | | ?????????????????????????????????????????????????? | | ?????????????????????????????????????????????????? | | ?????????????????????????????????????????????????? | | ?????????????????????????????????????????????????? | | ?????????????????????????????????????????????????? | | ?????????????????????????????????????????????????? | | ?????????????????????????????????????????????????? | | ?????????????????????a???????????????????????????? | +----------------------------------------------------+ Best States ------------- Heat Dissipation 42 Energy Generation 10 Energy Capacity 250 Matter Stores 300 Matter Capacity 300 Sight Range 16 Terrain Scan Density 85 Utility Shielding 33 Evasion (%) 55 Item Schematics ----------------- None Robot Schematics ------------------ None Fabricated ------------ Nothing Alien Tech Used ----------------- None Achievements -------------- None Challenges ------------ None Game ------ Seed PointGodProjector Manual? 0 Play Time 00:34:07 Cumulative 30.2 hours Start 2024.04.12 @ 17:53:59 End 2024.04.12 @ 19:04:20 Sessions 1 Manual Loads 0 Difficulty Rogue Special Mode None Game No. 17 Rogue 17 Adventurer 0 Explorer 0 Win Type - Total 0 Types 0/0/0/0/0/0/0/0/0 Lore% 8 Gallery% 23 Achievement% 16 Wizard Run 0 Options --------- Layout 1 ASCII 0 Keyboard 1 Movement Numpad Keybinds 0 Fullscreen 1 Font 24/Smallcaps Map View 50x35 Zoom Use 0% Tactical HUD 0 Map Filters NONE Filters NONE Steam 1 RUN: 17be29fd-30c7-42ac-882a-f6cd4d79caa5